bitfinex-derivatives/quotes_BTCF0:USTF0_20250429
["timestamp","ask_amount","ask_price","bid_price","bid_amount"]
[1745914227958,0.006,95065.0,95064.0,0.56887648]
[1745914228357,0.006,95065.0,95064.0,0.55250759]
[1745914230066,0.006,95065.0,95064.0,0.58410759]
[1745914230965,0.006,95065.0,95064.0,0.60037897]
[1745914232973,0.006,95065.0,95064.0,0.60039616]
[1745914233160,0.126,95065.0,95064.0,0.60039616]
[1745914235072,0.126,95065.0,95064.0,0.58410759]
[1745914235463,0.1572,95065.0,95064.0,0.58410759]
[1745914239561,0.1572,95065.0,95064.0,0.59989636]
[1745914239974,0.1572,95065.0,95064.0,0.58410759]
[1745914240968,0.1572,95065.0,95064.0,0.59963835]
[1745914244277,0.1572,95065.0,95064.0,0.58410759]
[1745914244472,0.1572,95065.0,95064.0,0.59980084]
[1745914246080,0.1572,95065.0,95064.0,0.58410759]
[1745914247383,0.1572,95065.0,95064.0,0.5996925]
[1745914249969,0.1572,95065.0,95064.0,0.58410759]
[1745914250171,0.1572,95065.0,95064.0,0.59972169]
[1745914252078,0.1572,95065.0,95064.0,0.59969175]
[1745914254982,0.1572,95065.0,95064.0,0.58410759]
[1745914256588,0.1572,95065.0,95064.0,0.55250759]
[1745914257483,0.1572,95065.0,95064.0,0.91330759]
[1745914258386,0.1572,95065.0,95064.0,0.55250759]
[1745914258583,0.1572,95065.0,95064.0,0.91330759]
[1745914262292,0.3675087,95065.0,95064.0,0.52140759]
[1745914262484,0.1572,95065.0,95064.0,0.52140759]
[1745914265197,0.1572,95065.0,95064.0,0.55170759]
[1745914274392,0.1572,95065.0,95064.0,0.58380759]
[1745914279292,0.1572,95065.0,95064.0,0.84791331]
[1745914281587,0.1572,95065.0,95064.0,0.81581331]
[1745914285098,0.1572,95065.0,95064.0,0.78551331]
[1745914286010,0.1572,95065.0,95064.0,0.81721331]
[1745914286602,0.126,95065.0,95064.0,0.81721331]
[1745914286906,0.126,95065.0,95064.0,0.85001331]
[1745914287408,0.126,95065.0,95064.0,0.69262505]
[1745914290403,0.1563,95065.0,95064.0,0.69262505]
[1745914290995,0.1563,95065.0,95064.0,0.62812505]
[1745914291399,0.1563,95065.0,95064.0,0.65862505]
[1745914306113,0.1563,95065.0,95064.0,0.69062505]
[1745914321837,0.1563,95065.0,95064.0,0.65862505]
[1745914322030,0.3666087,95065.0,95064.0,0.46354]
[1745914322230,0.7274087,95065.0,95064.0,0.46354]
[1745914322538,0.7274087,95065.0,95064.0,0.4191]
[1745914323837,0.0525793,95062.0,95059.0,0.0525804]
[1745914324036,0.2103197,95060.0,95059.0,0.2629001]
[1745914324639,0.03,95060.0,95059.0,0.2629001]
[1745914324827,0.03,95060.0,95059.0,0.3398601]
[1745914325031,0.03,95060.0,95059.0,0.3704601]
[1745914325226,0.15,95060.0,95059.0,0.3704601]
[1745914325637,0.153,95060.0,95059.0,0.3704601]
[1745914325842,0.125,95060.0,95059.0,0.3704601]
[1745914329639,0.125,95060.0,95059.0,0.7895601]
[1745914333236,0.125,95060.0,95059.0,0.7589601]
[1745914334440,0.158,95060.0,95059.0,0.7589601]
[1745914337440,0.3683197,95060.0,95059.0,0.46356]
[1745914337640,0.3999197,95060.0,95059.0,0.673882]
[1745914341452,0.3999197,95060.0,95059.0,0.254782]
[1745914341749,0.3999197,95060.0,95059.0,0.04446]
[1745914341950,0.3999197,95060.0,95059.0,0.254782]
[1745914346840,0.1896,95060.0,95059.0,0.254782]
[1745914347040,0.3999197,95060.0,95059.0,0.254782]
[1745914347248,0.4331197,95060.0,95059.0,0.254782]
[1745914348039,0.4331197,95060.0,95059.0,0.210322]
[1745914348840,0.2228,95060.0,95059.0,0.210322]
[1745914349046,0.4331197,95060.0,95059.0,0.210322]
[1745914352047,0.2228,95060.0,95059.0,0.210322]
[1745914353155,0.4331197,95060.0,95059.0,0.210322]
[1745914355046,0.4988797,95060.0,95059.0,0.210322]
[1745914356349,0.28856,95060.0,95059.0,0.210322]
[1745914357054,0.28856,95060.0,95059.0,0.240922]
[1745914357758,0.4988797,95060.0,95059.0,0.240922]
[1745914367056,0.4672797,95060.0,95059.0,0.240922]
[1745914367458,0.25696,95060.0,95059.0,0.240922]
[1745914368874,0.22396,95060.0,95059.0,0.240922]
[1745914369769,0.22396,95060.0,95059.0,0.25713654]
[1745914370466,0.19076,95060.0,95059.0,0.25713514]
[1745914370664,0.19076,95060.0,95059.0,0.240922]
[1745914370864,0.19076,95060.0,95059.0,0.660022]
[1745914371260,0.005,95060.0,95059.0,0.660022]
[1745914374671,0.005,95060.0,95059.0,0.67616775]
[1745914375772,0.005,95060.0,95059.0,0.67607579]
[1745914379679,0.005,95060.0,95059.0,0.6761338]
[1745914381078,0.125,95060.0,95059.0,0.6761338]
[1745914381572,0.125,95060.0,95059.0,0.4658118]
[1745914381768,0.125,95060.0,95059.0,0.660022]
[1745914385164,0.005,95060.0,95059.0,0.660022]
[1745914385764,0.005,95060.0,95059.0,0.67628944]
[1745914386073,0.125,95060.0,95059.0,0.67628944]
[1745914386676,0.125,95060.0,95059.0,0.660022]
[1745914387873,0.125,95060.0,95059.0,0.67629302]
[1745914388381,0.125,95060.0,95059.0,0.67629311]
[1745914391776,0.125,95060.0,95059.0,0.660022]
[1745914395079,0.005,95060.0,95059.0,0.70938842]
[1745914396075,0.005,95060.0,95059.0,0.82938842]
[1745914397178,0.005,95060.0,95059.0,0.70938842]
[1745914397886,0.005,95060.0,95059.0,0.70941331]
[1745914401792,0.005,95060.0,95059.0,0.70948109]
[1745914404592,0.005,95060.0,95059.0,0.70936424]
[1745914405491,0.005,95060.0,95059.0,0.693222]
[1745914405698,0.005,95060.0,95059.0,0.70936746]
[1745914411296,0.005,95060.0,95059.0,0.70941106]
[1745914411694,0.005,95060.0,95059.0,0.75388106]
[1745914413200,0.005,95060.0,95059.0,0.78648106]
[1745914414793,0.005,95060.0,95059.0,0.75328106]
[1745914415196,0.125,95060.0,95059.0,0.75328106]
[1745914416890,0.125,95060.0,95059.0,0.737092]
[1745914417095,0.125,95060.0,95059.0,0.75323986]
[1745914420005,0.125,95060.0,95059.0,2.25323986]
[1745914420299,0.125,95060.0,95059.0,0.72063986]
[1745914420894,0.125,95060.0,95059.0,0.72036664]
[1745914421996,0.125,95060.0,95059.0,0.704492]
[1745914427901,0.125,95060.0,95059.0,0.254792]
[1745914428101,0.6961197,95060.0,95059.0,0.254792]
[1745914428306,0.2629156,95056.0,95055.0,0.2103302]
[1745914428605,0.210333,95056.0,95055.0,0.2103302]
[1745914428805,0.274433,95056.0,95055.0,0.2103302]
[1745914429114,0.394433,95056.0,95055.0,0.2103302]
[1745914429503,0.396433,95056.0,95055.0,0.2103302]
[1745914429810,0.397433,95056.0,95055.0,0.2103302]
[1745914431308,0.1871,95056.0,95055.0,0.2103302]
[1745914431509,0.2177,95056.0,95055.0,0.2103302]
[1745914432903,0.7888286,95056.0,95055.0,0.2103302]
[1745914435417,0.123,95056.0,95055.0,0.2103302]
[1745914435808,0.123,95056.0,95055.0,0.2707302]
[1745914436209,0.0347,95056.0,95055.0,0.2707302]
[1745914436607,0.003,95056.0,95055.0,0.2707302]
[1745914436813,0.003,95056.0,95055.0,0.3759302]
[1745914437409,0.003,95056.0,95055.0,1.8759302]
[1745914438214,0.003,95056.0,95055.0,2.2950302]
[1745914438719,0.003,95056.0,95055.0,2.1898302]
[1745914441212,0.123,95056.0,95055.0,2.1898302]
[1745914441712,0.02806,95071.0,95070.0,0.2102976]
[1745914442021,0.02806,95071.0,95070.0,0.5710976]
[1745914442213,0.14806,95071.0,95070.0,0.5710976]
[1745914442728,0.14806,95071.0,95070.0,0.6340976]
[1745914443023,0.15306,95071.0,95070.0,0.6340976]
[1745914443413,0.18426,95071.0,95070.0,0.6340976]
[1745914444313,0.18326,95071.0,95070.0,0.6340976]
[1745914444924,0.18426,95071.0,95070.0,0.6340976]
[1745914447026,0.18426,95071.0,95070.0,1.0531976]
[1745914452918,0.18426,95071.0,95070.0,1.0216976]
[1745914453719,0.21516,95071.0,95070.0,1.0216976]
[1745914460034,0.21516,95071.0,95070.0,0.4191]
[1745914460222,0.21516,95071.0,95070.0,0.6293976]
[1745914463330,0.24676,95071.0,95070.0,0.6293976]
[1745914464332,0.4570554,95071.0,95070.0,0.6293976]
[1745914465239,0.8178554,95071.0,95070.0,0.6293976]
[1745914467139,0.4570554,95071.0,95070.0,0.6293976]
[1745914467334,0.8178554,95071.0,95070.0,0.6293976]
[1745914467639,0.4570554,95071.0,95070.0,0.6293976]
[1745914467837,0.8178554,95071.0,95070.0,0.6293976]
[1745914468139,0.4570554,95071.0,95070.0,0.6293976]
[1745914468335,0.8178554,95071.0,95070.0,0.6293976]
[1745914469439,0.4570554,95071.0,95070.0,0.6293976]
[1745914469640,0.8178554,95071.0,95070.0,0.6293976]
[1745914470844,0.60756,95071.0,95070.0,0.6293976]
[1745914476330,0.60756,95071.0,95070.0,0.2102976]
[1745914476732,0.60756,95071.0,95056.0,0.3608]
[1745914476927,0.2103099,95066.0,95065.0,0.2103065]
[1745914477139,0.12,95066.0,95065.0,0.2103065]
[1745914477342,0.1824,95066.0,95065.0,0.2103065]
[1745914477931,0.3937065,95066.0,95065.0,0.2103065]
[1745914479333,0.3967065,95066.0,95065.0,0.2103065]
[1745914479939,0.0525771,95065.0,95060.0,0.210319]
[1745914480133,0.5711212,95061.0,95060.0,0.210319]
[1745914481135,0.7548212,95061.0,95060.0,0.210319]
[1745914481335,0.5445,95061.0,95060.0,0.210319]
[1745914482539,0.5465,95061.0,95060.0,0.210319]
[1745914482736,0.7568175,95061.0,95060.0,0.210319]
[1745914482943,0.7578175,95061.0,95060.0,0.210319]
[1745914484030,0.7578189,95061.0,95060.0,0.2103197]
[1745914485240,0.2103241,95059.0,95058.0,0.2103221]
[1745914485439,0.2749241,95059.0,95058.0,0.2103221]
[1745914485947,0.0646,95059.0,95058.0,0.2103221]
[1745914486146,0.1846,95059.0,95058.0,0.2103221]
[1745914486445,0.1856,95059.0,95058.0,0.2103221]
[1745914489349,0.1856,95059.0,95052.0,0.0309]
[1745914489650,0.2629113,95057.0,95056.0,0.2103244]
[1745914490037,0.3269113,95057.0,95056.0,0.2103244]
[1745914490237,0.4469113,95057.0,95056.0,0.2103244]
[1745914492448,0.4479113,95057.0,95056.0,0.2103244]
[1745914492835,0.185,95057.0,95056.0,0.2103244]
[1745914493039,0.3953264,95057.0,95056.0,0.2103244]
[1745914493542,0.3963264,95057.0,95056.0,0.2103244]
[1745914495351,0.210333,95055.0,95054.0,0.2103321]
[1745914495737,0.166104,95055.0,95054.0,0.2103321]
[1745914496242,0.286104,95055.0,95054.0,0.2429321]
[1745914496551,0.287104,95055.0,95054.0,0.2429321]
[1745914497845,0.4974348,95055.0,95054.0,0.2429321]
[1745914501754,0.287104,95055.0,95054.0,0.2429321]
[1745914502154,0.287104,95055.0,95054.0,0.2743321]
[1745914502855,0.1819,95055.0,95054.0,0.2743321]
[1745914503153,0.121,95055.0,95054.0,0.2743321]
[1745914503556,0.1856,95055.0,95054.0,0.2743321]
[1745914505053,0.121,95055.0,95054.0,0.2743321]
[1745914505749,0.121,95055.0,95054.0,1.7743321]
[1745914506259,0.001,95055.0,95054.0,1.7743321]
[1745914507254,0.001,95055.0,95054.0,1.8943321]
[1745914508150,0.001,95055.0,95054.0,1.7743321]
[1745914508753,0.001,95055.0,95054.0,2.1934321]
[1745914513574,1e-07,95055.0,95054.0,2.5542321]
[1745914514173,1e-07,95055.0,95054.0,2.6742321]
[1745914515074,1e-07,95055.0,95054.0,2.5542321]
[1745914516066,1e-07,95055.0,95054.0,2.6742321]
[1745914518177,1e-07,95055.0,95054.0,2.5542321]
[1745914519079,1e-07,95055.0,95054.0,2.6742321]
[1745914520081,1e-07,95055.0,95054.0,2.5542321]
[1745914524978,1e-07,95055.0,95054.0,2.6594361]
[1745914525184,1e-07,95055.0,95054.0,2.7794361]
[1745914533187,1e-07,95055.0,95054.0,2.6594361]
[1745914534091,1e-07,95055.0,95054.0,2.7794361]
[1745914534595,1e-07,95055.0,95054.0,2.6428321]
[1745914534985,1e-07,95055.0,95054.0,2.6102321]
[1745914535190,0.1200001,95055.0,95054.0,0.9902321]
[1745914537777,0.1200001,95055.0,95054.0,0.7799]
[1745914537976,0.1200001,95055.0,95054.0,0.9902321]
[1745914538180,0.1200001,95055.0,95054.0,0.6294321]
[1745914538983,0.1838001,95055.0,95054.0,0.6294321]
[1745914546290,0.1508001,95055.0,95054.0,0.6622321]
[1745914546484,0.0822754,95055.0,95054.0,0.6932321]
[1745914546684,0.0822754,95055.0,95054.0,2.1932321]
[1745914547289,0.0308,95055.0,95054.0,2.1932321]
[1745914553579,0.0643,95065.0,95064.0,0.2103109]
[1745914553785,0.031,95065.0,95064.0,0.9902109]
[1745914554093,0.06824,95070.0,95069.0,0.2102998]
[1745914554287,0.09894,95070.0,95069.0,0.2102998]
[1745914554890,0.12944,95070.0,95069.0,0.2102998]
[1745914555091,0.24944,95070.0,95069.0,0.2102998]
[1745914555697,0.1812,95070.0,95069.0,0.2102998]
[1745914556288,0.1822,95070.0,95069.0,0.2102998]
[1745914556492,0.1852,95070.0,95069.0,0.2102998]
[1745914558186,0.1852,95070.0,95069.0,0.2405998]
[1745914558588,0.1852,95070.0,95069.0,0.6596998]
[1745914562803,0.1545,95070.0,95069.0,0.6596998]
[1745914563988,0.185,95070.0,95069.0,0.6596998]
[1745914570184,0.124,95070.0,95069.0,0.6596998]
[1745914571488,0.1569,95070.0,95069.0,0.6596998]
[1745914574591,0.1883,95070.0,95069.0,0.6596998]
[1745914585507,0.1569,95070.0,95069.0,0.6596998]
[1745914588601,0.1539,95070.0,95069.0,0.6596998]
[1745914589003,0.1529,95070.0,95069.0,0.6606998]
[1745914589809,0.1834,95070.0,95069.0,0.6606998]
[1745914598824,0.00458028,95091.0,95069.0,0.96638799]
[1745914599016,0.00458028,95091.0,95090.0,0.9318534]
[1745914599317,0.00458028,95091.0,95090.0,2.8509534]
[1745914600019,0.00458028,95091.0,95090.0,2.8835534]
[1745914600221,0.00458028,95091.0,95090.0,2.92334229]
[1745914601218,0.03688028,95091.0,95090.0,2.92334229]
[1745914601810,0.06878028,95091.0,95090.0,2.92334229]
[1745914602115,0.06978028,95091.0,95090.0,2.92334229]
[1745914604624,0.06978028,95091.0,95090.0,2.89074229]
[1745914604823,0.10178028,95091.0,95090.0,2.89074229]
[1745914606516,0.10178028,95091.0,95090.0,2.52994229]
[1745914610822,0.10178028,95091.0,95090.0,2.56024229]
[1745914611227,0.06978028,95091.0,95090.0,2.56024229]
[1745914612515,0.06978028,95091.0,95090.0,2.52994229]
[1745914612714,0.06978028,95091.0,95090.0,1.02994229]
[1745914613017,0.10058028,95091.0,95090.0,1.02994229]
[1745914614213,8e-08,95091.0,95090.0,1.02994229]
[1745914614924,8e-08,95091.0,95090.0,2.52994229]
[1745914617737,8e-08,95091.0,95090.0,0.6293534]
[1745914617937,8e-08,95091.0,95090.0,0.2102534]
[1745914618229,0.10516408,95091.0,95083.0,0.052567]
[1745914618429,0.3608,95084.0,95083.0,0.2102689]
[1745914618825,0.0616,95090.0,95089.0,0.2102556]
[1745914619127,0.0316,95090.0,95089.0,0.2102556]
[1745914619328,0.136764,95090.0,95089.0,0.2102556]
[1745914620437,0.0316,95090.0,95089.0,0.2102556]
[1745914627535,0.0326,95090.0,95089.0,0.2102556]
[1745914630825,0.0326,95090.0,95087.0,0.0525646]
[1745914631031,0.0313,95089.0,95088.0,0.2102578]
[1745914632836,0.0323,95089.0,95088.0,0.2102578]
[1745914634237,0.001,95089.0,95088.0,0.2404578]
[1745914634534,0.001,95089.0,95088.0,0.3051578]
[1745914635230,0.0316,95089.0,95088.0,0.3051578]
[1745914635742,0.0306,95089.0,95088.0,0.3051578]
[1745914638038,0.0314,95098.0,95094.0,0.2102445]
[1745914638237,0.0306,95097.0,95094.0,0.2102445]
[1745914639330,0.0692,95095.0,95094.0,0.2422445]
[1745914639741,0.0995,95095.0,95094.0,0.2422445]
[1745914643039,0.0313,95095.0,95094.0,0.2422445]
[1745914654241,0.001,95095.0,95094.0,0.2422445]
[1745914657547,0.0338,95095.0,95094.0,0.2422445]
[1745914658346,0.001,95095.0,95094.0,0.2422445]
[1745914666058,0.001,95095.0,95094.0,0.2736445]
[1745914681679,0.1459419,95100.0,95094.0,0.2736445]
[1745914681680,0.1154419,95100.0,95099.0,0.2102335]
[1745914681878,0.105,95100.0,95099.0,0.2102335]
[1745914682087,0.105,95100.0,95099.0,1.7102335]
[1745914682271,0.105,95100.0,95099.0,1.8302335]
[1745914682477,0.105,95100.0,95099.0,1.8955335]
[1745914683174,0.105,95100.0,95099.0,1.7755335]
[1745914683580,0.106,95100.0,95099.0,1.7755335]
[1745914687170,0.106,95100.0,95099.0,1.5653]
[1745914687571,0.106,95100.0,95099.0,2.1946335]
[1745914690183,0.0671483,95100.0,95099.0,2.1946335]
[1745914691372,0.0074587,95100.0,95099.0,2.1946335]
[1745914691575,0.0332,95113.0,95105.0,0.2102202]
[1745914691782,0.0332,95113.0,95105.0,0.5710202]
[1745914692382,0.0332,95113.0,95105.0,0.6351202]
[1745914692780,0.0641,95113.0,95105.0,0.6351202]
[1745914693587,0.0641,95113.0,95105.0,1.0542202]
[1745914700598,0.0641,95113.0,95105.0,2.5542202]
[1745914712210,0.0641,95113.0,95105.0,2.5217202]
[1745914712511,0.0641,95113.0,95105.0,0.9901202]
[1745914721002,0.0327,95112.0,95105.0,0.9901202]
[1745914721407,0.0653,95111.0,95105.0,0.9901202]
[1745914725308,0.0653,95111.0,95105.0,0.6293202]
[1745914728412,0.0653,95111.0,95105.0,2.1293202]
[1745914733622,0.2755091,95111.0,95105.0,2.1293202]
[1745914733825,0.0653,95111.0,95105.0,2.1293202]
[1745914737022,0.0653,95111.0,95105.0,2.1619202]
[1745914739023,0.0653,95111.0,95105.0,2.1920202]
[1745914767439,0.0653,95111.0,95105.0,0.6293202]
[1745914767629,0.1178521,95111.0,95105.0,0.6293202]
[1745914767831,0.0653,95111.0,95105.0,0.6293202]
[1745914768128,0.0653,95111.0,95105.0,0.6612202]
[1745914768639,0.2755073,95111.0,95105.0,0.6612202]
[1745914768939,0.0653,95111.0,95105.0,0.6612202]
[1745914774929,0.0653,95111.0,95105.0,2.1939202]
[1745914789841,0.0653,95111.0,95105.0,2.5547202]
[1745914794550,0.0319,95110.0,95105.0,2.5547202]
[1745914794948,0.0631,95109.0,95105.0,2.5547202]
[1745914797951,0.0329,95109.0,95105.0,2.5547202]
[1745914801059,0.0312,95108.0,95105.0,2.5547202]
[1745914801661,0.0319,95107.0,95105.0,2.5547202]
[1745914803355,0.0319,95107.0,95105.0,2.1939202]
[1745914803560,0.0319,95107.0,95105.0,2.5547202]
[1745914804556,0.0328,95106.0,95105.0,2.5547202]
[1745914810162,0.0328,95106.0,95105.0,2.5220202]
[1745914812161,0.0328,95106.0,95105.0,2.5526202]
[1745914818062,0.0328,95106.0,95105.0,2.1918202]
[1745914818271,0.0328,95106.0,95105.0,2.5526202]
[1745914819371,0.0328,95106.0,95105.0,2.1918202]
[1745914819573,0.0328,95106.0,95105.0,2.5526202]
[1745914821169,0.0328,95106.0,95105.0,2.4901202]
[1745914821372,0.0636,95106.0,95105.0,2.4901202]
[1745914824970,0.0636,95106.0,95105.0,2.5219202]
[1745914826059,0.0636,95106.0,95105.0,2.1611202]
[1745914828075,0.0636,95106.0,95105.0,2.1293202]
[1745914829264,0.0636,95106.0,95105.0,2.1611202]
[1745914831178,0.0636,95106.0,95105.0,1.9509]
[1745914831682,0.0636,95106.0,95105.0,2.1611202]
[1745914836884,0.0636,95106.0,95105.0,0.6293202]
[1745914837179,0.378966,95106.0,95105.0,0.58847104]
[1745914837383,0.378966,95106.0,95105.0,0.2102202]
[1745914844784,0.168748,95106.0,95105.0,0.2102202]
[1745914845088,0.001,95106.0,95105.0,0.2102202]
[1745914845388,0.001,95106.0,95105.0,0.3033202]
[1745914845588,0.001,95106.0,95105.0,1.8033202]
[1745914848896,0.001,95106.0,95105.0,2.18157104]
[1745914860603,1e-07,95106.0,95105.0,2.18157104]
[1745914860895,0.0324,95114.0,95113.0,0.2102026]
[1745914861195,0.0324,95114.0,95113.0,0.94925344]
[1745914861597,0.0324,95114.0,95113.0,2.44925344]
[1745914861894,0.0324,95114.0,95113.0,2.54555344]
[1745914863191,0.0023,95140.0,95113.0,2.43535084]
[1745914863497,1e-07,95131.0,95130.0,0.570965]
[1745914863880,1e-07,95131.0,95130.0,0.634565]
[1745914864396,0.0314,95139.0,95130.0,0.634565]
[1745914864397,1e-07,95136.0,95135.0,0.2101539]
[1745914865287,1e-07,95136.0,95135.0,0.2734539]
[1745914869397,1e-07,95136.0,95135.0,0.65170474]
[1745914871294,1e-07,95136.0,95135.0,0.58840474]
[1745914875286,1e-07,95136.0,95135.0,0.2101539]
[1745914876385,1e-07,95136.0,95133.0,0.052539]
[1745914876586,1e-07,95136.0,95135.0,0.2101539]
[1745914882304,0.3608001,95136.0,95135.0,0.2101539]
[1745914883900,1e-07,95136.0,95135.0,0.2101539]
[1745914884102,1e-07,95136.0,95135.0,0.2745539]
[1745914887007,1e-07,95136.0,95135.0,0.65280474]
[1745914907329,0.0306001,95136.0,95135.0,0.65280474]
[1745914915740,0.0306001,95136.0,95135.0,0.58840474]
[1745914916437,0.0306001,95136.0,95135.0,0.2101539]
[1745914918237,0.2627016,95134.0,95133.0,0.2101578]
[1745914918437,0.2101623,95134.0,95133.0,0.2101578]
[1745914918636,0.31527831,95134.0,95133.0,0.2101578]
[1745914918833,0.37927211,95134.0,95133.0,0.2101578]
[1745914919039,0.16911601,95134.0,95133.0,0.2101578]
[1745914919336,0.37927211,95134.0,95133.0,0.2101578]
[1745914919536,0.052542,95130.0,95125.0,0.37825084]
[1745914919736,0.2101738,95128.0,95127.0,0.2101706]
[1745914919936,0.5709738,95128.0,95127.0,0.2101706]
[1745914920236,0.7380978,95128.0,95127.0,0.2101706]
[1745914921033,0.7380978,95128.0,95127.0,0.2111706]
[1745914921627,0.7380978,95128.0,95127.0,0.2101706]
[1745914925036,0.6329738,95128.0,95127.0,0.2101706]
[1745914927854,0.6979338,95128.0,95127.0,0.2101706]
[1745914929438,0.48776,95128.0,95127.0,0.2101706]
[1745914933951,0.48776,95128.0,95127.0,0.2418706]
[1745914941351,0.062,95128.0,95127.0,0.2418706]
[1745914941550,0.3608,95132.0,95131.0,0.2101628]
[1745914941940,0.0023,95140.0,95135.0,0.2101539]
[1745914941941,0.06854,95140.0,95135.0,0.2101539]
[1745914942336,0.0023,95140.0,95135.0,0.2101539]
[1745914942646,0.0023,95140.0,95135.0,1.7723539]
[1745914945743,0.0023,95140.0,95135.0,2.15060474]
[1745914947353,1e-07,95140.0,95139.0,0.2101451]
[1745914948150,1e-07,95140.0,95139.0,1.7752451]
[1745914948544,1e-07,95140.0,95139.0,1.8803531]
[1745914949241,1e-07,95140.0,95139.0,2.25860394]
[1745914951545,0.0015,95150.0,95149.0,0.210123]
[1745914951546,1e-07,95150.0,95149.0,0.210123]
[1745914951745,1e-07,95150.0,95149.0,0.570923]
[1745914952349,1e-07,95150.0,95149.0,0.633123]
[1745914952953,1e-07,95150.0,95149.0,2.133123]
[1745914954343,1e-07,95150.0,95149.0,2.238219]
[1745914955657,0.0324,95163.0,95162.0,0.2100943]
[1745914956550,0.0324,95163.0,95162.0,0.2716943]
[1745914960060,0.0631,95163.0,95162.0,0.2716943]
[1745914966760,0.0631,95163.0,95162.0,0.2405943]
[1745914967257,0.0324,95163.0,95162.0,0.2405943]
[1745914968249,0.0324,95163.0,95162.0,2.11884514]
[1745914969858,0.0324,95163.0,95162.0,2.08834514]
[1745914971464,0.0324,95163.0,95162.0,1.87825084]
[1745914971659,0.0324,95163.0,95162.0,2.08834514]
[1745914983764,0.0324,95163.0,95162.0,2.11994514]
[1745914984668,0.0324,95163.0,95162.0,0.58834514]
[1745914984669,0.3475761,95163.0,95162.0,0.58834514]
[1745914984869,0.3475761,95163.0,95162.0,0.37825084]
[1745914985169,0.208044,95163.0,95162.0,0.58834514]
[1745914986567,0.3130521,95163.0,95162.0,0.58834514]
[1745914986772,0.4181361,95163.0,95162.0,0.37825084]
[1745914987065,0.208044,95163.0,95147.0,0.37825084]
[1745914987266,0.3608,95152.0,95151.0,0.2101186]
[1745914989768,0.3608,95152.0,95151.0,0.2111186]
[1745914996965,0.5709164,95152.0,95151.0,0.2111186]
[1745914997164,0.3608,95152.0,95151.0,0.2111186]
[1745914997576,0.5709164,95152.0,95151.0,0.2111186]
[1745914997967,0.5709164,95152.0,95151.0,0.001]
[1745914998167,0.2101252,95148.0,95147.0,0.37825084]
[1745914998574,0.2101252,95148.0,95143.0,0.052534]
[1745914998575,0.2101341,95145.0,95144.0,0.210129]
[1745914998875,0.2802141,95145.0,95144.0,0.210129]
[1745914999074,0.3753141,95145.0,95144.0,0.210129]
[1745915001379,0.052534,95144.0,95140.0,0.0525351]
[1745915001580,0.5709407,95141.0,95140.0,0.2626755]
[1745915001774,0.5709407,95141.0,95135.0,0.0316]
[1745915001984,0.2101584,95133.0,95113.0,0.21274571]
[1745915002176,0.2101584,95133.0,95132.0,0.21173735]
[1745915004178,0.2111584,95133.0,95132.0,0.21173735]
[1745915005369,0.2101584,95133.0,95132.0,0.21173735]
[1745915005570,0.2111584,95133.0,95132.0,0.21173735]
[1745915006168,0.2111584,95133.0,95132.0,0.00157675]
[1745915006377,0.31627441,95133.0,95132.0,0.00157675]
[1745915008273,0.32567812,95133.0,95132.0,0.00157675]
[1745915008480,0.32667812,95133.0,95132.0,0.00157675]
[1745915009184,0.32567812,95133.0,95132.0,0.00157675]
[1745915009383,0.32667812,95133.0,95132.0,0.00157675]
[1745915011581,0.32667812,95133.0,95121.0,0.0525461]
[1745915011582,0.2101893,95120.0,95119.0,0.2101843]
[1745915011770,0.43092,95120.0,95119.0,0.2101893]
[1745915011970,0.43092,95120.0,95119.0,0.2761893]
[1745915012580,0.0307,95126.0,95119.0,0.066]
[1745915012777,0.0307,95126.0,95125.0,0.210176]
[1745915013076,0.3109938,95126.0,95125.0,0.210176]
[1745915013668,0.3109938,95126.0,95125.0,0.276176]
[1745915014877,0.3119938,95126.0,95125.0,0.276176]
[1745915016475,0.07112,95126.0,95125.0,0.276176]
[1745915018082,0.07012,95126.0,95125.0,0.276176]
[1745915020975,0.07012,95126.0,95125.0,0.65442684]
[1745915021479,0.07012,95126.0,95125.0,0.65542684]
[1745915023679,0.07112,95126.0,95125.0,0.65442684]
[1745915024683,0.6420938,95126.0,95125.0,0.62142684]
[1745915024879,0.6410938,95126.0,95125.0,0.243176]
[1745915025282,0.7043938,95126.0,95125.0,0.243176]
[1745915025478,0.7043938,95126.0,95124.0,0.0307]
[1745915025677,0.7043938,95126.0,95125.0,0.210176]
[1745915027184,1.0651938,95126.0,95125.0,0.210176]
[1745915027983,1.0661938,95126.0,95125.0,0.210176]
[1745915030990,0.210176,95125.0,95124.0,0.2408782]
[1745915031391,0.273876,95125.0,95124.0,0.2408782]
[1745915032798,0.274876,95125.0,95124.0,0.2408782]
[1745915033612,0.274876,95125.0,95124.0,0.2101782]
[1745915036611,0.273876,95125.0,95124.0,0.2101782]
[1745915036796,0.2101782,95124.0,95123.0,0.0307]
[1745915037002,0.2101849,95121.0,95120.0,0.2407871]
[1745915037799,0.2101871,95120.0,95119.0,0.0322]
[1745915038006,0.2416871,95120.0,95119.0,0.2423893]
[1745915038511,0.2416871,95120.0,95119.0,0.2101893]
[1745915039901,0.6024871,95120.0,95119.0,0.2101893]
[1745915040503,0.6034871,95120.0,95119.0,0.2101893]
[1745915040702,0.6344871,95120.0,95119.0,0.2101893]
[1745915044209,0.7030871,95120.0,95119.0,0.2101893]
[1745915044414,0.7030871,95120.0,95119.0,0.2429893]
[1745915044709,0.2101981,95115.0,95114.0,0.0015771]
[1745915044910,0.2101981,95115.0,95114.0,0.2117774]
[1745915045609,0.2750981,95115.0,95114.0,0.2117774]
[1745915045799,0.2760981,95115.0,95114.0,0.2117774]
[1745915046205,0.2760981,95115.0,95114.0,0.0015771]
[1745915046406,0.2760981,95115.0,95114.0,0.2117774]
[1745915047010,0.2760981,95115.0,95114.0,0.0015771]
[1745915047407,0.2760981,95115.0,95114.0,0.2117774]
[1745915048611,0.2760981,95115.0,95114.0,0.0015771]
[1745915052317,0.3433781,95115.0,95114.0,0.0015771]
[1745915056416,0.2102158,95107.0,95088.0,0.3608]
[1745915056609,0.5710158,95107.0,95106.0,0.58846884]
[1745915057319,0.6353158,95107.0,95106.0,0.58846884]
[1745915057510,0.6353158,95107.0,95106.0,0.210218]
[1745915058109,0.4251,95107.0,95090.0,0.052563]
[1745915058419,0.5710357,95098.0,95097.0,0.21181523]